bitfinex-derivatives/quotes_BNBF0:USTF0_20250316
["timestamp","ask_amount","ask_price","bid_price","bid_amount"]
[1742143728583,0.61071771,605.78,604.96,0.463]
[1742143728791,0.61072316,605.77,604.96,0.463]
[1742143728986,0.61072861,605.76,604.96,0.463]
[1742143729185,0.28056485,605.75,604.96,0.463]
[1742143729391,0.28062354,605.74,604.96,0.463]
[1742143729693,0.28062354,605.73,604.97,0.145]
[1742143729886,0.28062354,605.75,604.97,0.145]
[1742143730092,0.28062354,605.74,604.97,0.145]
[1742143730293,0.28062354,605.75,604.97,0.145]
[1742143730484,0.28062354,605.74,604.97,0.145]
[1742143730688,0.28062354,605.75,604.97,0.145]
[1742143730889,0.28062354,605.74,604.97,0.145]
[1742143731089,0.28062314,605.73,604.97,0.145]
[1742143731293,0.33016376,605.76,604.97,0.145]
[1742143731294,0.28062314,605.72,604.97,0.145]
[1742143731594,0.28062314,605.71,604.97,0.145]
[1742143731788,0.28062314,605.75,604.97,0.145]
[1742143732587,0.33016376,605.76,604.97,0.145]
[1742143732790,0.28063036,605.75,604.97,0.145]
[1742143733185,0.28063036,605.75,604.98,0.513]
[1742143734596,0.33016376,605.76,604.98,0.513]
[1742143734795,0.28060141,605.75,604.98,0.513]
[1742143736494,0.28060078,605.74,604.98,0.513]
[1742143736694,0.28060078,605.75,604.98,0.513]
[1742143736894,0.28060078,605.74,604.98,0.513]
[1742143737101,0.28060078,605.75,604.98,0.513]
[1742143737296,0.28060078,605.74,604.98,0.513]
[1742143737490,0.28060078,605.73,604.98,0.513]
[1742143737694,0.28060078,605.75,604.98,0.513]
[1742143737895,0.28060078,605.74,604.98,0.513]
[1742143738095,0.28060078,605.73,604.98,0.513]
[1742143738294,0.33016376,605.76,604.98,0.513]
[1742143738595,0.28056964,605.75,604.98,0.513]
[1742143740097,0.28057029,605.74,604.98,0.513]
[1742143740294,0.28057029,605.75,604.98,0.513]
[1742143740500,0.28057029,605.74,604.98,0.513]
[1742143740692,0.28057029,605.73,604.98,0.513]
[1742143740888,0.28057029,605.75,604.98,0.513]
[1742143741095,0.28057029,605.74,604.98,0.513]
[1742143741289,0.28062735,605.73,604.98,0.513]
[1742143741492,0.28062735,605.75,604.98,0.513]
[1742143741690,0.28062735,605.74,604.98,0.513]
[1742143741896,0.28062735,605.75,604.98,0.513]
[1742143742095,0.28062735,605.74,604.98,0.513]
[1742143742395,0.28062735,605.73,604.98,0.513]
[1742143742698,0.61081291,605.72,604.98,0.513]
[1742143742890,0.33019101,605.71,604.98,0.513]
[1742143743094,0.28062735,605.7,604.98,0.513]
[1742143743295,0.61086043,605.69,604.98,0.513]
[1742143743498,0.28065852,605.68,604.98,0.513]
[1742143745290,0.33021282,605.67,604.98,0.513]
[1742143745495,0.28065852,605.66,604.98,0.513]
[1742143745698,0.33022372,605.65,604.98,0.513]
[1742143745900,0.28065852,605.64,604.98,0.513]
[1742143746200,0.33023463,605.63,604.98,0.513]
[1742143746395,0.28065852,605.62,604.98,0.513]
[1742143746797,0.33024553,605.61,604.98,0.513]
[1742143747100,0.28075328,605.6,604.98,0.513]
[1742143751904,0.33025644,605.59,604.98,0.513]
[1742143752298,0.2807294,605.58,604.92,0.145]
[1742143754101,0.28072744,605.57,604.92,0.145]
[1742143754402,0.28072744,605.56,604.92,0.145]
[1742143754603,0.28072744,605.55,604.92,0.145]
[1742143754800,0.28072744,605.54,604.92,0.145]
[1742143755005,0.33028916,605.53,604.92,0.145]
[1742143755204,0.28072744,605.52,604.92,0.145]
[1742143755606,0.33030007,605.51,604.92,0.145]
[1742143755906,0.28076813,605.5,604.92,0.145]
[1742143756807,0.33031098,605.49,604.92,0.145]
[1742143757000,0.28076813,605.48,604.92,0.145]
[1742143758101,0.33032189,605.47,604.92,0.145]
[1742143758302,0.28076813,605.46,604.92,0.145]
[1742143758507,0.33033281,605.45,604.92,0.145]
[1742143758709,0.28076813,605.44,604.92,0.145]
[1742143758901,0.33034372,605.43,604.92,0.145]
[1742143759107,0.28076813,605.42,604.92,0.145]
[1742143759306,0.33035463,605.41,604.92,0.145]
[1742143759604,0.28076813,605.4,604.92,0.145]
[1742143759804,0.33036554,605.39,604.92,0.145]
[1742143760205,0.28076813,605.38,604.92,0.145]
[1742143760406,0.33037646,605.37,604.92,0.145]
[1742143760807,0.28076813,605.36,604.92,0.145]
[1742143761105,0.33038737,605.35,604.92,0.145]
[1742143761610,0.28085595,605.34,604.92,0.145]
[1742143763209,0.28079654,605.33,604.92,0.145]
[1742143763612,0.28079654,605.32,604.92,0.145]
[1742143763811,0.28079654,605.31,604.92,0.145]
[1742143764007,0.28079654,605.3,604.92,0.145]
[1742143764213,0.28079654,605.34,604.92,0.145]
[1742143764411,0.28079654,605.33,604.92,0.145]
[1742143764611,0.28079654,605.32,604.92,0.145]
[1742143764811,0.33038737,605.35,604.92,0.145]
[1742143765114,0.28078602,605.34,604.92,0.145]
[1742143766510,0.28078602,605.34,604.9,0.429]
[1742143766715,0.28075083,605.33,604.9,0.429]
[1742143766914,0.28075083,605.34,604.9,0.429]
[1742143767110,0.28075083,605.33,604.9,0.429]
[1742143767312,0.33038737,605.35,604.9,0.429]
[1742143767712,0.28071911,605.34,604.9,0.429]
[1742143769314,0.28071911,605.33,604.9,0.429]
[1742143769511,0.28071911,606.15,604.9,0.429]
[1742143769713,0.32996221,606.13,604.9,0.429]
[1742143769913,2.51974999,606.04,604.9,0.429]
[1742143770113,0.33002211,606.02,604.9,0.429]
[1742143770315,0.2807231,606.01,604.9,0.429]
[1742143770516,0.33003844,605.99,604.9,0.429]
[1742143770816,0.2807231,605.98,604.9,0.429]
[1742143771016,0.33005478,605.96,604.9,0.429]
[1742143771216,0.2807231,605.95,604.9,0.429]
[1742143771412,0.33007113,605.93,604.9,0.429]
[1742143771612,0.2807231,605.92,604.9,0.429]
[1742143771817,0.2807231,605.91,604.9,0.429]
[1742143772113,0.2807231,605.9,604.9,0.429]
[1742143772317,0.33009836,605.88,604.9,0.429]
[1742143772512,0.2807231,605.87,604.9,0.429]
[1742143772715,0.33011471,605.85,604.9,0.429]
[1742143772916,0.2807231,605.84,604.9,0.429]
[1742143773115,0.33013106,605.82,604.9,0.429]
[1742143773318,0.2807231,605.81,604.9,0.429]
[1742143774714,0.33014196,605.8,604.9,0.429]
[1742143774918,0.2807231,605.79,604.9,0.429]
[1742143775117,0.33015286,605.78,604.9,0.429]
[1742143775318,0.2807231,605.77,604.9,0.429]
[1742143775617,0.33016376,605.76,604.9,0.429]
[1742143775818,0.28072619,605.75,604.9,0.429]
[1742143776117,0.33017466,605.74,604.9,0.429]
[1742143776312,0.28072619,605.73,604.9,0.429]
[1742143776512,0.33018556,605.72,604.9,0.429]
[1742143776719,0.28072619,605.71,604.9,0.429]
[1742143776920,0.33019646,605.7,604.9,0.429]
[1742143777220,0.28072619,605.69,604.9,0.429]
[1742143777715,0.33020737,605.68,604.9,0.429]
[1742143777919,0.28072619,605.67,604.9,0.429]
[1742143778220,0.33021827,605.66,604.9,0.429]
[1742143778417,0.28072619,605.65,604.9,0.429]
[1742143778621,0.33022917,605.64,604.9,0.429]
[1742143778816,0.28072619,605.63,604.9,0.429]
[1742143779023,0.33024008,605.62,604.9,0.429]
[1742143779523,0.280785,605.61,604.9,0.429]
[1742143779823,0.33025099,605.6,604.9,0.429]
[1742143780022,0.280785,605.59,604.9,0.429]
[1742143780624,0.33026189,605.58,604.9,0.429]
[1742143780816,0.280785,605.57,604.9,0.429]
[1742143781022,0.3302728,605.56,604.9,0.429]
[1742143781324,0.280785,605.55,604.9,0.429]
[1742143781527,0.33028371,605.54,604.9,0.429]
[1742143781725,0.280785,605.53,604.9,0.429]
[1742143781926,0.33029462,605.52,604.9,0.429]
[1742143782126,0.280785,605.51,604.9,0.429]
[1742143782423,0.33030553,605.5,604.66,0.145]
[1742143782726,0.280785,605.49,604.66,0.145]
[1742143782919,0.61109598,605.49,604.66,0.145]
[1742143783122,0.280785,605.48,604.66,0.145]
[1742143785026,0.280785,605.48,604.66,0.586]
[1742143786427,0.28081599,605.47,604.66,0.586]
[1742143786830,0.28081599,605.48,604.66,0.586]
[1742143787029,0.28081599,605.46,604.66,0.586]
[1742143787228,0.28081599,605.45,604.66,0.586]
[1742143787433,0.28081599,605.48,604.66,0.586]
[1742143787629,0.28081599,605.47,604.66,0.586]
[1742143787833,0.28081599,605.46,604.66,0.586]
[1742143788031,0.28081599,605.48,604.66,0.586]
[1742143788234,0.28081599,605.47,604.66,0.586]
[1742143788638,0.28081599,605.46,604.66,0.586]
[1742143788834,0.33033281,605.45,604.66,0.586]
[1742143789038,0.28081599,605.44,604.66,0.586]
[1742143789435,0.33034372,605.43,604.66,0.586]
[1742143789737,0.28081599,605.42,604.66,0.586]
[1742143789939,0.33035463,605.41,604.66,0.586]
[1742143790242,0.28081599,605.4,604.66,0.586]
[1742143790442,0.33036554,605.39,604.66,0.586]
[1742143790642,0.28081599,605.38,604.66,0.586]
[1742143791142,0.33037646,605.37,604.66,0.586]
[1742143791338,0.28081599,605.36,604.66,0.586]
[1742143792042,0.33037646,605.37,604.66,0.586]
[1742143792043,0.33038737,605.35,604.66,0.586]
[1742143792244,0.28086924,605.34,604.66,0.586]
[1742143799046,0.28086924,605.33,604.66,0.586]
[1742143799445,0.28086924,605.32,603.0,1.2187774]
[1742143799643,0.28086924,605.31,603.01,0.30419533]
[1742143799842,0.33038737,605.35,603.45,0.28792216]
[1742143799843,0.28086924,605.3,603.45,0.28792216]
[1742143800042,0.28086924,605.29,603.46,0.30419533]
[1742143800249,0.28086924,605.28,603.45,0.2881057]
[1742143800540,0.28086924,605.27,603.46,0.30419533]
[1742143800747,2.51974999,605.22,603.46,0.30419533]
[1742143800951,5.19630569,605.21,603.46,0.30419533]
[1742143801146,1.7163273,605.2,603.46,0.30419533]
[1742143801547,0.28086924,605.19,603.46,0.30419533]
[1742143801749,0.28086924,605.18,603.46,0.30419533]
[1742143801946,0.28086924,605.17,603.46,0.30419533]
[1742143802145,1.43545806,605.2,603.46,0.30419533]
[1742143802146,0.28086924,605.16,603.46,0.30419533]
[1742143802347,0.28086924,605.15,603.46,0.30419533]
[1742143802546,0.28086924,605.14,603.46,0.30419533]
[1742143802744,0.28086924,605.13,603.46,0.30419533]
[1742143802944,0.28086924,605.12,603.46,0.30419533]
[1742143803149,0.28086924,605.11,603.46,0.30419533]
[1742143803447,0.28086924,605.1,603.46,0.30419533]
[1742143803651,0.28086924,605.17,603.47,0.33141664]
[1742143803849,0.33049657,605.15,603.48,0.30419533]
[1742143804049,0.28086924,605.14,603.48,0.30419533]
[1742143804550,0.28086924,605.13,603.48,0.30419533]
[1742143804750,0.33049657,605.15,603.49,0.33140565]
[1742143804948,0.2811105,605.14,603.5,0.30428931]
[1742143805149,0.2811105,605.13,603.5,0.30428931]
[1742143805345,0.2811105,605.12,603.5,0.30428931]
[1742143805549,0.2811105,605.11,603.49,0.33140565]
[1742143805742,0.2811105,605.1,603.49,0.33140565]
[1742143805948,0.2811105,605.14,603.49,0.33140565]
[1742143806142,0.2811105,605.13,603.49,0.33140565]
[1742143806344,0.2811105,605.14,603.49,0.33140565]
[1742143806645,0.2811105,605.13,603.49,0.33140565]
[1742143806849,0.2811105,605.14,603.49,0.33140565]
[1742143807646,0.33051295,605.12,603.49,0.33140565]
[1742143808048,0.28108728,605.11,603.49,0.33140565]
[1742143808246,0.28108649,605.1,603.49,0.33140565]
[1742143808447,0.28108649,605.11,603.49,0.33140565]
[1742143808649,0.28108649,605.1,603.49,0.33140565]
[1742143808946,0.28108649,605.09,603.49,0.33140565]
[1742143809148,0.28108649,605.11,603.49,0.33140565]
[1742143809346,0.28108649,605.1,603.49,0.33140565]
[1742143809545,0.28108649,605.11,603.49,0.33140565]
[1742143809750,0.33052934,605.09,603.49,0.33140565]
[1742143810052,0.28108649,605.08,603.49,0.33140565]
[1742143810250,0.33054026,605.07,603.49,0.33140565]
[1742143810446,0.28108649,605.06,603.49,0.33140565]
[1742143810652,0.33055119,605.05,603.49,0.33140565]
[1742143810946,0.28108649,605.04,603.49,0.33140565]
[1742143811154,0.33056212,605.03,603.49,0.33140565]
[1742143811455,0.28108649,605.02,603.49,0.33140565]
[1742143811647,0.33057304,605.01,603.49,0.33140565]
[1742143811845,0.28108649,605.0,603.49,0.33140565]
[1742143812050,0.33058397,604.99,603.49,0.33140565]
[1742143812253,0.28108649,604.98,603.49,0.33140565]
[1742143812453,0.3305949,604.97,603.49,0.33140565]
[1742143812654,0.28108649,604.96,603.49,0.33140565]
[1742143812858,0.33060583,604.95,603.49,0.33140565]
[1742143813153,0.28107913,604.94,603.49,0.33140565]
[1742143813346,0.33061676,604.93,603.49,0.33140565]
[1742143813547,0.28107913,604.92,603.49,0.33140565]
[1742143813752,0.28107913,604.92,603.5,0.3042221]
[1742143813955,0.28107913,604.92,603.51,0.33139467]
[1742143814153,0.28107913,604.92,603.52,0.3042221]
[1742143815755,0.28107913,604.92,603.54,0.3313782]
[1742143815955,0.28107913,604.92,603.55,0.3042221]
[1742143816362,0.28107913,604.92,603.57,0.33136173]
[1742143816653,0.28107913,604.92,603.58,0.3042221]
[1742143816853,0.28107913,604.92,603.59,0.33135075]
[1742143817752,0.28107913,604.92,603.6,0.30418913]
[1742143817949,0.28107913,604.92,603.61,0.33133977]
[1742143818153,0.28107913,604.92,603.62,0.30418913]
[1742143819858,0.28107913,604.92,603.64,0.3313233]
[1742143821853,0.28107913,604.92,603.65,0.30420529]
[1742143822659,0.28107913,604.92,603.66,0.33131232]
[1742143823156,0.28107913,604.92,603.67,0.30416659]
[1742143823653,0.28107913,604.92,603.68,0.33130135]
[1742143823959,0.33061676,604.93,603.68,0.33130135]
[1742143824160,0.28100159,604.92,603.68,0.33130135]
[1742143826955,0.33061676,604.93,603.68,0.33130135]
[1742143827161,0.28102632,604.92,603.68,0.33130135]
[1742143829261,0.33061676,604.93,603.68,0.33130135]
[1742143829464,0.28108569,604.92,603.68,0.33130135]
[1742143832863,0.33061676,604.93,603.68,0.33130135]
[1742143833063,0.28103088,604.91,603.68,0.33130135]
[1742143833260,0.28103088,604.9,603.68,0.33130135]
[1742143833665,0.28103088,604.89,603.68,0.33130135]
[1742143833860,0.28103088,604.88,603.68,0.33130135]
[1742143834062,0.28103088,604.92,603.68,0.33130135]
[1742143834269,0.28103088,604.91,603.68,0.33130135]
[1742143834462,0.28103088,604.92,603.68,0.33130135]
[1742143834663,0.28103088,604.91,603.68,0.33130135]
[1742143834865,0.28099855,604.9,603.68,0.33130135]
[1742143835065,0.28099855,604.92,603.68,0.33130135]
[1742143835268,0.28099855,604.91,603.68,0.33130135]
[1742143835469,0.28099855,604.92,603.68,0.33130135]
[1742143835664,0.28099855,604.91,603.68,0.33130135]
[1742143835861,0.28099855,604.9,603.68,0.33130135]
[1742143836062,0.28099855,604.89,603.68,0.33130135]
[1742143836267,0.28099855,604.88,603.68,0.33130135]
[1742143836469,0.33061676,604.93,603.68,0.33130135]
[1742143836769,0.28103755,604.92,603.68,0.33130135]
[1742143848983,0.28103755,604.91,603.68,0.33130135]
[1742143849281,0.28103755,604.9,603.68,0.33130135]
[1742143849783,0.61167617,604.89,603.68,0.33130135]
[1742143849981,0.33064409,604.88,603.68,0.33130135]
[1742143850181,0.28103755,604.87,603.68,0.33130135]
[1742143850375,0.61169257,604.86,603.52,0.484]
[1742143850580,0.61169804,604.85,603.52,0.484]
[1742143850977,0.61170351,604.84,603.52,0.484]
[1742143851187,0.61170897,604.83,603.52,0.484]
[1742143851379,0.61171444,604.82,603.52,0.484]
[1742143851576,0.28103755,604.81,603.52,0.484]
[1742143851781,0.33067689,604.82,603.52,0.484]
[1742143851782,0.61172538,604.8,603.52,0.484]
[1742143851981,0.61173084,604.79,603.52,0.484]
[1742143852282,0.61173631,604.78,603.52,0.484]
[1742143852584,0.33070423,604.77,603.52,0.484]
[1742143852786,0.28116786,604.76,603.52,0.484]
[1742143852986,0.33071517,604.75,603.52,0.484]
[1742143853185,0.28116786,604.74,603.52,0.484]
[1742143854286,0.28116786,604.74,603.53,0.33138369]
[1742143854486,0.33071517,604.75,603.53,0.33138369]
[1742143857794,1.43873113,606.2,603.53,0.33138369]
[1742143857994,0.32999488,606.07,603.53,0.33138369]
[1742143858796,0.28101548,606.06,603.53,0.33138369]
[1742143858997,0.33006568,605.94,603.53,0.33138369]
[1742143859192,0.28101548,605.93,603.53,0.33138369]
[1742143859393,0.33013651,605.81,603.53,0.33138369]
[1742143859790,0.28101548,605.8,603.53,0.33138369]
[1742143859996,0.33020191,605.69,603.53,0.33138369]
[1742143860298,0.28101548,605.68,603.53,0.33138369]
[1742143860598,0.33026189,605.58,603.53,0.33138369]
[1742143860797,0.28101548,605.57,603.53,0.33138369]
[1742143860996,0.33027825,605.55,603.54,0.30417949]
[1742143861195,0.28101548,605.54,603.55,0.33137271]
[1742143861392,0.33029462,605.52,603.56,0.30417949]
[1742143861597,0.33029462,605.52,603.57,0.33136173]
[1742143861795,0.28101548,605.51,603.58,0.30417949]
[1742143861997,0.33031098,605.49,603.59,0.33135075]
[1742143862397,0.28101548,605.48,603.6,0.30417949]
[1742143862593,0.33032735,605.46,603.61,0.33133977]
[1742143863099,0.28101548,605.45,603.62,0.30417949]
[1742143863294,0.28101548,605.44,603.62,0.30417949]
[1742143863500,0.33034917,605.42,603.64,0.3313233]
[1742143863701,0.28101548,605.41,603.65,0.30417949]
[1742143864098,0.33036554,605.39,603.66,0.33131232]
[1742143864298,0.28101548,605.38,603.67,0.30417949]
[1742143864500,0.33037646,605.37,603.68,0.33130135]
[1742143864694,0.28093485,605.36,603.69,0.30411181]
[1742143865100,0.33038737,605.35,603.71,0.33128488]
[1742143865297,0.28093485,605.34,603.72,0.30411181]
[1742143865498,0.33039829,605.33,603.73,0.33127391]
[1742143865697,0.28093485,605.32,603.74,0.30411181]
[1742143865898,0.28093485,605.32,603.75,0.33126293]
[1742143866203,0.33040921,605.31,603.75,0.33126293]
[1742143866403,0.28091967,605.3,603.76,0.3040659]
[1742143866602,0.28091967,605.3,603.78,0.33124648]
[1742143866803,0.28091967,605.3,603.79,0.3040659]
[1742143867103,0.28091967,605.3,603.81,0.33123002]
[1742143867304,0.28091967,605.3,603.82,0.3040659]
[1742143867506,0.28091967,605.3,603.83,0.33121905]
[1742143867901,0.33040921,605.31,603.83,0.33121905]
[1742143868102,0.28087015,605.3,603.84,0.3040463]
[1742143868299,0.28087015,605.3,603.85,0.33120808]
[1742143868503,0.28087015,605.3,603.86,0.3040463]
[1742143868803,0.28087015,605.3,603.87,0.33119711]
[1742143869004,0.28087015,605.3,603.88,0.3040463]
[1742143869200,0.28087015,605.3,603.89,0.33118614]
[1742143869405,0.28087015,605.3,603.9,0.3040463]
[1742143869601,0.28087015,605.3,603.91,0.33117517]
[1742143870002,0.28083465,605.29,603.92,0.30401035]
[1742143870200,0.28083465,605.29,603.93,0.3311642]
[1742143870402,0.28083465,605.28,603.94,0.30401035]
[1742143870700,0.28083465,605.27,603.95,0.33115324]
[1742143870999,0.28083465,605.26,603.95,0.33115324]
[1742143871199,0.28083465,605.3,603.95,0.33115324]
[1742143871405,0.28083465,605.29,603.95,0.33115324]
[1742143871605,0.28083465,605.28,603.95,0.33115324]
[1742143871905,0.28088115,605.27,603.95,0.33115324]
[1742143872102,0.28088115,605.26,603.95,0.33115324]
[1742143872305,0.28088115,605.3,603.95,0.33115324]
[1742143872505,0.28088115,605.29,603.95,0.33115324]
[1742143872805,0.28088115,605.28,603.95,0.33115324]
[1742143873004,0.28088115,605.3,603.95,0.33115324]
[1742143873305,0.28088115,605.29,603.96,0.30398784]
[1742143873506,0.28079949,605.28,603.98,0.33113679]
[1742143873705,0.28079949,605.3,603.99,0.30397524]
[1742143873906,0.28079949,605.29,603.99,0.30397524]
[1742143874207,0.28079949,605.28,604.0,0.33112582]
[1742143874606,0.28079949,605.27,604.01,0.30397524]
[1742143874907,0.28079949,605.26,604.02,0.33111486]
[1742143875107,0.33040921,605.31,604.02,0.33111486]
[1742143875407,0.28080884,605.3,604.03,0.30398419]
[1742143875608,0.28080884,605.3,604.04,0.3311039]
[1742143876810,0.33040921,605.31,604.04,0.3311039]
[1742143877010,0.28085841,605.3,604.04,0.3311039]
[1742143878909,0.33040921,605.31,604.04,0.3311039]
[1742143878910,0.28083913,605.29,604.04,0.3311039]
[1742143879208,0.28083913,605.3,604.04,0.3311039]
[1742143879414,0.28083913,605.29,604.04,0.3311039]
[1742143879607,0.28083913,605.3,604.04,0.3311039]
[1742143879804,0.28083913,605.29,604.04,0.3311039]
[1742143880111,0.28083913,605.28,604.04,0.3311039]
[1742143880311,0.28083913,605.3,604.04,0.3311039]
[1742143880511,0.28083913,605.29,604.05,0.30399429]
[1742143880711,0.28083913,605.29,604.06,0.33109293]
[1742143880911,0.28083913,605.28,604.07,0.30399429]
[1742143881112,0.28083913,605.3,604.07,0.30399429]
[1742143881310,0.28083913,605.29,604.06,0.33109293]
[1742143881505,0.28083913,605.28,604.06,0.33109293]
[1742143881709,0.28083913,605.27,604.06,0.33109293]
[1742143881911,0.28083913,605.3,604.06,0.33109293]
[1742143882112,0.28083913,605.29,604.06,0.33109293]
[1742143882510,0.28082598,605.28,604.06,0.33109293]
[1742143882705,0.28082598,605.27,604.06,0.33109293]
[1742143882911,0.28082598,605.3,604.06,0.33109293]
[1742143883107,0.28082598,605.29,604.06,0.33109293]
[1742143883307,0.28082598,605.3,604.07,0.30394462]
[1742143883513,0.28082598,605.29,604.08,0.33108197]
[1742143883707,0.28082598,605.28,604.08,0.33108197]
[1742143883908,0.28082598,605.27,604.09,0.30391599]
[1742143884113,0.33040921,605.31,604.1,0.33107101]
[1742143884306,0.28074028,605.3,604.11,0.30391507]
[1742143884512,0.28072484,605.29,604.12,0.30389956]
[1742143884808,0.28072484,605.28,604.14,0.33104909]
[1742143885010,4.87032389,606.11,604.15,0.30389956]
[1742143885011,1.70832231,606.1,604.15,0.30389956]
[1742143885206,0.32998944,606.08,604.16,0.33103813]
[1742143885410,0.28072484,606.07,604.17,0.30389956]
[1742143885613,0.33000577,606.05,604.18,0.33102717]
[1742143886010,0.28072484,606.04,604.19,0.30389956]
[1742143886209,0.33002211,606.02,604.2,0.33101621]
[1742143886414,0.28072484,606.01,604.21,0.30389956]
[1742143886609,0.28072484,606.0,604.21,0.30389956]
[1742143886815,2.52548479,605.98,604.21,0.30389956]
[1742143887113,0.28072484,605.97,604.21,0.30389956]
[1742143887511,0.28072484,605.96,604.21,0.30389956]
[1742143888012,0.33006568,605.94,604.22,0.33100526]
[1742143888213,0.28072484,605.93,604.23,0.30389956]
[1742143888414,0.33008202,605.91,604.24,0.3309943]
[1742143888612,0.33008202,605.91,604.25,0.30389956]
[1742143888613,0.28072484,605.9,604.25,0.30389956]
[1742143888916,0.33009836,605.88,604.26,0.33098335]
[1742143889209,0.28072484,605.87,604.27,0.30389956]
[1742143890015,0.28072484,605.87,604.28,0.33097239]
[1742143890214,0.33011471,605.85,604.28,0.33097239]
[1742143890410,0.28072484,605.84,604.28,0.33097239]
[1742143890715,0.33012561,605.83,604.28,0.33097239]
[1742143890913,0.28072484,605.82,604.28,0.33097239]
[1742143891509,0.33013651,605.81,604.28,0.33097239]
[1742143891710,0.28072484,605.8,604.28,0.33097239]
[1742143892217,0.33014741,605.79,604.28,0.33097239]
[1742143892515,0.28072484,605.78,604.28,0.33097239]
[1742143893117,0.33015831,605.77,604.28,0.33097239]
[1742143893311,0.28072484,605.76,604.28,0.33097239]
[1742143893513,0.33016921,605.75,604.28,0.33097239]
[1742143893712,0.28072484,605.74,604.28,0.33097239]
[1742143893915,0.33018011,605.73,604.28,0.84097239]
[1742143894113,0.28072484,605.72,604.28,0.84097239]
[1742143894316,0.33019101,605.71,604.28,0.84097239]
[1742143894516,0.28072484,605.7,604.28,0.84097239]
[1742143894812,0.33019101,605.71,604.28,0.84097239]
[1742143895014,0.28068189,605.69,604.28,0.84097239]
[1742143895214,0.28068189,605.68,604.28,0.84097239]
[1742143895413,0.28068189,605.7,604.28,0.84097239]
[1742143895617,0.28068189,605.69,604.28,0.84097239]
[1742143895814,0.28068189,605.7,604.28,0.84097239]
[1742143897020,0.28068189,605.7,604.29,0.30384866]
[1742143897419,0.28068189,605.7,604.3,0.33096144]
[1742143897620,0.28068189,605.7,604.31,0.30384866]
[1742143897820,0.28068189,605.7,604.32,0.33095048]
[1742143898021,0.28068189,605.7,604.33,0.30384866]
[1742143898221,0.28068189,605.7,604.34,0.33093953]
[1742143898523,0.28068189,605.7,604.35,0.30384866]
[1742143902221,0.28064127,605.69,604.36,0.30381479]
[1742143902419,0.28064127,605.7,604.35,0.30381479]
[1742143902620,0.28064127,605.69,604.36,0.30381479]
[1742143902917,0.28064127,605.68,604.37,0.6347379]
[1742143903118,0.33019101,605.71,604.28,0.51]
[1742143903119,0.28064127,605.7,604.38,0.63473242]
[1742143903324,0.28064127,605.69,604.39,0.30381479]
[1742143903527,0.28064127,605.7,604.39,0.30381479]
[1742143903825,0.33019101,605.71,604.38,0.33091763]
[1742143904025,0.28062107,605.7,604.39,0.30379429]
[1742143904224,0.28062107,605.7,604.4,0.33090668]
[1742143909423,0.33019101,605.71,604.4,0.33090668]
[1742143909629,0.28068166,605.7,604.4,0.33090668]
[1742143911230,0.33019101,605.71,604.4,0.33090668]
[1742143911433,0.28069886,605.7,604.4,0.33090668]
[1742143912932,0.33019101,605.71,604.4,0.33090668]
[1742143913131,0.28067755,605.69,604.4,0.33090668]
[1742143913331,0.28067755,605.68,604.4,0.33090668]
[1742143913530,0.28067755,605.7,604.4,0.33090668]
[1742143913832,0.28067755,605.69,604.4,0.33090668]
[1742143914033,0.28067755,605.7,604.4,0.33090668]
[1742143922832,0.28067755,605.7,604.41,0.3038003]
[1742143923836,0.28067755,605.7,604.43,0.33089026]
[1742143924036,0.28067755,605.7,604.44,0.3038003]
[1742143925340,0.28067755,605.7,604.46,0.33087383]
[1742143925539,0.28067755,605.7,604.47,0.3038003]
[1742143925832,0.28067755,605.7,604.48,0.33086289]
[1742143926041,0.28067755,605.7,604.49,0.3038003]
[1742143926236,0.28067755,605.7,604.5,0.33085194]
[1742143926433,0.28067755,605.7,604.51,0.3038003]
[1742143926633,0.28067755,605.7,604.52,0.33084099]
[1742143927231,0.28058272,605.69,604.52,0.33084099]
[1742143927539,0.28058272,605.68,604.52,0.33084099]
[1742143927842,0.28058272,605.67,604.52,0.33084099]
[1742143928039,0.28058272,605.7,604.52,0.33084099]
[1742143928339,0.28058272,605.69,604.52,0.33084099]
[1742143928540,0.28058272,605.7,604.52,0.33084099]
[1742143928739,0.28058272,605.69,604.52,0.33084099]
[1742143929040,0.28057804,605.68,604.52,0.33084099]
[1742143929232,0.28057804,605.7,604.52,0.33084099]
[1742143929434,0.28057804,605.69,604.52,0.33084099]
[1742143929637,0.28057804,605.7,604.52,0.33084099]
[1742143930841,0.28057095,605.69,604.52,0.33084099]
[1742143931038,0.28057095,605.7,604.52,0.33084099]
[1742143931233,0.28057095,605.69,604.52,0.33084099]